[Event "*** Titled Tuesday Blitz"]
[Site "Chess.com"]
[Date "2019.05.07"]
[Round "4"]
[White "mitrabhaa"]
[Black "ChristopherYoo"]
[Result "1-0"]
[WhiteElo "2660"]
[BlackElo "2702"]
[TimeControl "180+2"]
[EndTime "13:56:45 PDT"]
[Termination "mitrabhaa won by resignation"]

1. d4 {[%clk 0:03:01.9]} 1... Nf6 {[%clk 0:03:00.7]} 2. Nf3 {[%clk 0:03:02.6]}
2... g6 {[%clk 0:03:01]} 3. g3 {[%clk 0:03:03.2]} 3... Bg7 {[%clk 0:03:01.7]} 4.
Bg2 {[%clk 0:03:04.8]} 4... O-O {[%clk 0:03:02.4]} 5. O-O {[%clk 0:03:06.3]}
5... d6 {[%clk 0:03:02.9]} 6. c4 {[%clk 0:03:07.5]} 6... Nc6 {[%clk 0:03:03.7]}
7. Nc3 {[%clk 0:03:08.6]} 7... e5 {[%clk 0:03:04.2]} 8. dxe5 {[%clk 0:03:09.3]}
8... dxe5 {[%clk 0:03:04.6]} 9. Qxd8 {[%clk 0:03:10]} 9... Rxd8 {[%clk
0:03:04.9]} 10. Bg5 {[%clk 0:03:11.4]} 10... Be6 {[%clk 0:03:03]} 11. Nd2 {[%clk
0:03:05.2]} 11... h6 {[%clk 0:02:57]} 12. Bxf6 {[%clk 0:03:04.2]} 12... Rxd2
{[%clk 0:02:49.4]} 13. Bxg7 {[%clk 0:03:04.3]} 13... Kxg7 {[%clk 0:02:49.4]} 14.
Bxc6 {[%clk 0:03:05.7]} 14... bxc6 {[%clk 0:02:49.5]} 15. b3 {[%clk 0:03:07.2]}
15... Rad8 {[%clk 0:02:25.4]} 16. Rfd1 {[%clk 0:03:05]} 16... R8d7 {[%clk
0:02:19.7]} 17. Rac1 {[%clk 0:02:54.8]} 17... e4 {[%clk 0:02:01.7]} 18. Kf1
{[%clk 0:02:47]} 18... f5 {[%clk 0:01:51.4]} 19. Ke1 {[%clk 0:02:44.5]} 19...
Rxd1+ {[%clk 0:01:50.1]} 20. Rxd1 {[%clk 0:02:44.7]} 20... Rxd1+ {[%clk
0:01:49.9]} 21. Kxd1 {[%clk 0:02:44.4]} 21... Kf6 {[%clk 0:01:50.8]} 22. Kd2
{[%clk 0:02:40.3]} 22... Ke5 {[%clk 0:01:50.7]} 23. e3 {[%clk 0:02:38.7]} 23...
g5 {[%clk 0:01:45.2]} 24. Ne2 {[%clk 0:02:33.7]} 24... Bd7 {[%clk 0:01:23]} 25.
b4 {[%clk 0:02:24.9]} 25... Kd6 {[%clk 0:01:10.4]} 26. c5+ {[%clk 0:02:22]}
26... Ke5 {[%clk 0:01:05.3]} 27. Kc3 {[%clk 0:02:22.7]} 27... a6 {[%clk
0:00:46.5]} 28. a3 {[%clk 0:02:18.6]} 28... Bc8 {[%clk 0:00:38]} 29. Nd4 {[%clk
0:02:18.3]} 29... Bd7 {[%clk 0:00:36.6]} 30. Ne2 {[%clk 0:02:10.7]} 30... Bc8
{[%clk 0:00:35.7]} 31. h4 {[%clk 0:02:11.4]} 31... Kd5 {[%clk 0:00:30.3]} 32.
hxg5 {[%clk 0:02:11]} 32... hxg5 {[%clk 0:00:27.3]} 33. Ng1 {[%clk 0:02:12.5]}
33... Ke5 {[%clk 0:00:24.3]} 34. Nh3 {[%clk 0:02:08.9]} 34... Kf6 {[%clk
0:00:19]} 35. Ng1 {[%clk 0:02:09.8]} 35... Ke5 {[%clk 0:00:14.4]} 36. Ne2 {[%clk
0:02:10.4]} 36... Kd5 {[%clk 0:00:15.9]} 37. Nd4 {[%clk 0:02:11.3]} 37... Bd7
{[%clk 0:00:13.6]} 38. Nb3 {[%clk 0:02:12.2]} 38... Ke5 {[%clk 0:00:11.3]} 39.
Na5 {[%clk 0:02:11.7]} 39... f4 {[%clk 0:00:08]} 40. Nc4+ {[%clk 0:02:10.9]}
40... Kf5 {[%clk 0:00:06.9]} 41. gxf4 {[%clk 0:02:11.9]} 41... gxf4 {[%clk
0:00:08.8]} 42. Kd4 {[%clk 0:02:13.3]} 42... Be6 {[%clk 0:00:04.1]} 43. Ne5
{[%clk 0:02:07.6]} 43... Bd5 {[%clk 0:00:05]} 44. Nd7 {[%clk 0:02:08.2]} 44...
Kg4 {[%clk 0:00:04.5]} 45. Ne5+ {[%clk 0:02:00.6]} 45... Kf5 {[%clk 0:00:04.4]}
46. a4 {[%clk 0:02:01]} 46... Bb3 {[%clk 0:00:04.3]} 47. a5 {[%clk 0:01:59.1]}
47... Ba4 {[%clk 0:00:04.3]} 48. Nc4 {[%clk 0:01:53.4]} 48... Bb5 {[%clk
0:00:03.6]} 49. Nd2 {[%clk 0:01:54]} 49... Bd3 {[%clk 0:00:02.9]} 50. f3 {[%clk
0:01:52.1]} 50... fxe3 {[%clk 0:00:03.3]} 51. Kxe3 {[%clk 0:01:49.7]} 51... Ke5
{[%clk 0:00:02.8]} 52. fxe4 {[%clk 0:01:50.4]} 52... Bc2 {[%clk 0:00:02.3]} 53.
Nf3+ {[%clk 0:01:51.5]} 53... Kf6 {[%clk 0:00:03.5]} 54. Kf4 {[%clk 0:01:52.9]}
54... Ba4 {[%clk 0:00:03.4]} 55. Nd4 {[%clk 0:01:52.2]} 55... Kf7 {[%clk
0:00:04.7]} 56. Kg5 {[%clk 0:01:51.4]} 56... Ke7 {[%clk 0:00:05.2]} 57. e5
{[%clk 0:01:52.6]} 57... Kf7 {[%clk 0:00:04.5]} 58. e6+ {[%clk 0:01:53.3]} 58...
Ke7 {[%clk 0:00:05.5]} 59. Kf5 {[%clk 0:01:53.7]} 59... Bd1 {[%clk 0:00:05.2]}
60. Ke5 {[%clk 0:01:55]} 60... Ba4 {[%clk 0:00:04.3]} 61. Nf5+ {[%clk
0:01:55.7]} 61... Kd8 {[%clk 0:00:05.1]} 62. Kf6 {[%clk 0:01:56.9]} 62... Bb3
{[%clk 0:00:05]} 63. e7+ {[%clk 0:01:57.7]} 1-0

[Event "*** Titled Tuesday Blitz"]
[Site "Chess.com"]
[Date "2019.05.07"]
[Round "4"]
[White "kharov2001"]
[Black "DamianoLew95"]
[Result "1-0"]
[WhiteElo "2531"]
[BlackElo "2436"]
[TimeControl "180+2"]
[EndTime "13:56:48 PDT"]
[Termination "kharov2001 won by resignation"]

1. e4 {[%clk 0:03:01.9]} 1... c5 {[%clk 0:03:00.6]} 2. Nf3 {[%clk 0:02:59.9]}
2... d6 {[%clk 0:03:01.9]} 3. Bb5+ {[%clk 0:03:00]} 3... Nd7 {[%clk 0:03:01.7]}
4. d4 {[%clk 0:03:00.3]} 4... a6 {[%clk 0:03:01.8]} 5. Bxd7+ {[%clk 0:02:59]}
5... Qxd7 {[%clk 0:03:02.1]} 6. Nc3 {[%clk 0:03:00.9]} 6... e6 {[%clk
0:02:58.6]} 7. Bg5 {[%clk 0:02:55.6]} 7... h6 {[%clk 0:02:55.7]} 8. Bh4 {[%clk
0:02:56.5]} 8... g5 {[%clk 0:02:52.4]} 9. Bg3 {[%clk 0:02:57.8]} 9... Bg7 {[%clk
0:02:50.8]} 10. dxc5 {[%clk 0:02:53.4]} 10... dxc5 {[%clk 0:02:50.2]} 11. Be5
{[%clk 0:02:47.1]} 11... Bxe5 {[%clk 0:02:39.3]} 12. Nxe5 {[%clk 0:02:47.7]}
12... Qc7 {[%clk 0:02:32.9]} 13. Nc4 {[%clk 0:02:46.8]} 13... Ke7 {[%clk
0:02:02.9]} 14. e5 {[%clk 0:02:44]} 14... f5 {[%clk 0:01:43.3]} 15. Qh5 {[%clk
0:02:29.5]} 15... Bd7 {[%clk 0:01:26.2]} 16. Qg6 {[%clk 0:02:22.5]} 16... Kf8
{[%clk 0:01:19.7]} 17. Nd6 {[%clk 0:02:11.3]} 17... Bc8 {[%clk 0:01:20.1]} 18.
Qe8+ {[%clk 0:02:00.4]} 18... Kg7 {[%clk 0:01:20.6]} 19. Qh5 {[%clk 0:01:42.7]}
19... Qe7 {[%clk 0:01:13.9]} 20. h4 {[%clk 0:01:31.9]} 20... Bd7 {[%clk
0:00:58.9]} 21. hxg5 {[%clk 0:01:26.4]} 21... Be8 {[%clk 0:00:59.5]} 22. Nxe8+
{[%clk 0:01:23.1]} 22... Rxe8 {[%clk 0:00:59.3]} 23. O-O-O {[%clk 0:01:10.2]}
23... Qxg5+ {[%clk 0:00:59.4]} 24. Qxg5+ {[%clk 0:01:06]} 24... hxg5 {[%clk
0:01:01.3]} 25. Rxh8 {[%clk 0:01:02.8]} 25... Kxh8 {[%clk 0:01:01.9]} 26. Rd7
{[%clk 0:01:03.3]} 26... Re7 {[%clk 0:01:02.6]} 27. Rd6 {[%clk 0:00:58.2]} 27...
Nh6 {[%clk 0:00:59.5]} 28. Na4 {[%clk 0:00:59.5]} 28... Nf7 {[%clk 0:00:52.5]}
29. Rb6 {[%clk 0:00:53.8]} 29... Nxe5 {[%clk 0:00:34.3]} 30. Nxc5 {[%clk
0:00:54.8]} 30... Ng4 {[%clk 0:00:34.2]} 31. f3 {[%clk 0:00:53.5]} 31... Ne3
{[%clk 0:00:34.7]} 32. g3 {[%clk 0:00:49.3]} 32... Nf1 {[%clk 0:00:33.2]} 33.
Nxe6 {[%clk 0:00:46.5]} 33... Kg8 {[%clk 0:00:29]} 34. c3 {[%clk 0:00:43]} 34...
g4 {[%clk 0:00:26.3]} 35. fxg4 {[%clk 0:00:39.7]} 35... fxg4 {[%clk 0:00:26.7]}
36. Nd4 {[%clk 0:00:39.4]} 36... Kf7 {[%clk 0:00:18.9]} 37. Nf5 {[%clk 0:00:22]}
37... Re1+ {[%clk 0:00:14.4]} 38. Kc2 {[%clk 0:00:22.9]} 38... Ke8 {[%clk
0:00:04.8]} 39. Rxb7 {[%clk 0:00:18.9]} 39... Re5 {[%clk 0:00:05.6]} 40. Nd6+
{[%clk 0:00:16]} 40... Kf8 {[%clk 0:00:05.4]} 41. Rf7+ {[%clk 0:00:17]} 41...
Kg8 {[%clk 0:00:06.2]} 42. Rxf1 {[%clk 0:00:18.9]} 1-0

[Event "*** Titled Tuesday Blitz"]
[Site "Chess.com"]
[Date "2019.05.07"]
[Round "4"]
[White "TregubovP"]
[Black "Durarbayli"]
[Result "0-1"]
[WhiteElo "2538"]
[BlackElo "2753"]
[TimeControl "180+2"]
[EndTime "13:57:04 PDT"]
[Termination "Durarbayli won by resignation"]

1. d4 {[%clk 0:03:01.9]} 1... Nf6 {[%clk 0:03:00.5]} 2. c4 {[%clk 0:03:02.8]}
2... e6 {[%clk 0:03:02]} 3. Nc3 {[%clk 0:03:02.9]} 3... Bb4 {[%clk 0:03:02.2]}
4. e3 {[%clk 0:03:04.2]} 4... O-O {[%clk 0:03:02.8]} 5. Bd3 {[%clk 0:03:04.4]}
5... d5 {[%clk 0:03:03.7]} 6. Ne2 {[%clk 0:03:05.2]} 6... b6 {[%clk 0:02:56.3]}
7. a3 {[%clk 0:02:59.8]} 7... Be7 {[%clk 0:02:56.7]} 8. e4 {[%clk 0:02:57.9]}
8... dxe4 {[%clk 0:02:52.4]} 9. Nxe4 {[%clk 0:02:58.9]} 9... Bb7 {[%clk
0:02:52.9]} 10. Nxf6+ {[%clk 0:02:52.5]} 10... Bxf6 {[%clk 0:02:54.8]} 11. O-O
{[%clk 0:02:53]} 11... Nc6 {[%clk 0:02:49.6]} 12. Be3 {[%clk 0:02:50.2]} 12...
Qd7 {[%clk 0:02:50.6]} 13. Qc2 {[%clk 0:02:45.1]} 13... g6 {[%clk 0:02:50.9]}
14. Rad1 {[%clk 0:02:45.2]} 14... Rad8 {[%clk 0:02:50.9]} 15. Be4 {[%clk
0:02:46.3]} 15... Qc8 {[%clk 0:02:45.8]} 16. b4 {[%clk 0:02:43.2]} 16... Qa8
{[%clk 0:02:43.4]} 17. d5 {[%clk 0:02:24.2]} 17... Ne7 {[%clk 0:02:39.8]} 18.
Bf3 {[%clk 0:01:58.3]} 18... exd5 {[%clk 0:02:38.1]} 19. c5 {[%clk 0:01:59.1]}
19... Nf5 {[%clk 0:02:29.7]} 20. Bf4 {[%clk 0:01:56.5]} 20... Nh4 {[%clk
0:02:26.1]} 21. Nd4 {[%clk 0:01:41.5]} 21... Nxf3+ {[%clk 0:02:24.9]} 22. gxf3
{[%clk 0:01:37]} 22... bxc5 {[%clk 0:02:19.3]} 23. bxc5 {[%clk 0:01:36.9]} 23...
c6 {[%clk 0:01:57.7]} 24. Rfe1 {[%clk 0:01:36.2]} 24... Qc8 {[%clk 0:01:55.7]}
25. Kg2 {[%clk 0:01:34.8]} 25... Rfe8 {[%clk 0:01:49.5]} 26. Re3 {[%clk
0:01:30.2]} 26... Qd7 {[%clk 0:01:47.2]} 27. Qa4 {[%clk 0:01:27.3]} 27... Rxe3
{[%clk 0:01:39.6]} 28. fxe3 {[%clk 0:01:26.9]} 28... a6 {[%clk 0:01:30.8]} 29.
Rb1 {[%clk 0:01:18.9]} 29... Re8 {[%clk 0:01:29.4]} 30. Kf2 {[%clk 0:00:20.2]}
30... g5 {[%clk 0:01:24.5]} 31. Bg3 {[%clk 0:00:19.2]} 31... h5 {[%clk
0:01:21.6]} 32. Rb6 {[%clk 0:00:13.3]} 32... Qe7 {[%clk 0:01:22.1]} 33. Rb3
{[%clk 0:00:07.6]} 33... h4 {[%clk 0:00:43.9]} 34. Bd6 {[%clk 0:00:08.2]} 34...
Qd7 {[%clk 0:00:45.5]} 35. Qb4 {[%clk 0:00:08.7]} 35... Bc8 {[%clk 0:00:42.4]}
36. Qb6 {[%clk 0:00:09.8]} 36... Bxd4 {[%clk 0:00:42]} 37. exd4 {[%clk
0:00:10.4]} 37... Qe6 {[%clk 0:00:43.5]} 38. Be5 {[%clk 0:00:11.5]} 38... f6
{[%clk 0:00:43.2]} 39. Re3 {[%clk 0:00:13]} 39... fxe5 {[%clk 0:00:34.3]} 40.
Rxe5 {[%clk 0:00:14.1]} 40... Qg6 {[%clk 0:00:35.9]} 41. Qc7 {[%clk 0:00:11.7]}
41... Rxe5 {[%clk 0:00:34.9]} 42. dxe5 {[%clk 0:00:12.7]} 42... Qe8 {[%clk
0:00:32.6]} 43. Qd6 {[%clk 0:00:12.9]} 43... Be6 {[%clk 0:00:33.4]} 44. Ke3
{[%clk 0:00:13.4]} 44... Kf7 {[%clk 0:00:34.3]} 45. Kd4 {[%clk 0:00:14.5]} 45...
Qc8 {[%clk 0:00:28.1]} 46. a4 {[%clk 0:00:15]} 46... Qb7 {[%clk 0:00:25.9]} 47.
a5 {[%clk 0:00:16]} 47... Qb4+ {[%clk 0:00:21.6]} 48. Ke3 {[%clk 0:00:17.1]}
48... d4+ {[%clk 0:00:20]} 49. Ke4 {[%clk 0:00:18.2]} 49... Qb1+ {[%clk
0:00:19.5]} 50. Kxd4 {[%clk 0:00:18.6]} 50... Qd1+ {[%clk 0:00:20.6]} 51. Ke3
{[%clk 0:00:18.8]} 51... Qxd6 {[%clk 0:00:20.4]} 52. exd6 {[%clk 0:00:19.8]}
52... Bd5 {[%clk 0:00:21.4]} 53. f4 {[%clk 0:00:20.9]} 53... g4 {[%clk
0:00:22.5]} 0-1

[Event "*** Titled Tuesday Blitz"]
[Site "Chess.com"]
[Date "2019.05.07"]
[Round "4"]
[White "harvsp123"]
[Black "GMKrikor"]
[Result "1-0"]
[WhiteElo "2481"]
[BlackElo "2750"]
[TimeControl "180+2"]
[EndTime "13:57:08 PDT"]
[Termination "harvsp123 won by resignation"]

1. d4 {[%clk 0:03:01.9]} 1... Nf6 {[%clk 0:02:59.4]} 2. c4 {[%clk 0:03:00.3]}
2... e6 {[%clk 0:03:00]} 3. Nf3 {[%clk 0:02:57.2]} 3... Bb4+ {[%clk 0:03:00.4]}
4. Bd2 {[%clk 0:02:57.6]} 4... a5 {[%clk 0:03:01.7]} 5. g3 {[%clk 0:02:58.2]}
5... d6 {[%clk 0:03:02.5]} 6. Bg2 {[%clk 0:02:58.9]} 6... Nbd7 {[%clk
0:03:04.2]} 7. Nc3 {[%clk 0:02:59.3]} 7... e5 {[%clk 0:03:01.4]} 8. O-O {[%clk
0:02:55.8]} 8... exd4 {[%clk 0:03:01.8]} 9. Nxd4 {[%clk 0:02:56.4]} 9... O-O
{[%clk 0:03:03.4]} 10. Qc2 {[%clk 0:02:54.6]} 10... Re8 {[%clk 0:03:04.1]} 11.
Rad1 {[%clk 0:02:45.1]} 11... Bc5 {[%clk 0:02:46.8]} 12. Bf4 {[%clk 0:02:40.4]}
12... h6 {[%clk 0:02:42]} 13. b3 {[%clk 0:02:09.2]} 13... Ne5 {[%clk 0:02:38.2]}
14. Na4 {[%clk 0:02:07.5]} 14... Qe7 {[%clk 0:02:34]} 15. Nxc5 {[%clk
0:02:04.6]} 15... dxc5 {[%clk 0:02:33.3]} 16. Nb5 {[%clk 0:01:39.4]} 16... Rb8
{[%clk 0:02:28.6]} 17. Rfe1 {[%clk 0:01:34.8]} 17... b6 {[%clk 0:02:28.2]} 18.
Qb2 {[%clk 0:01:19]} 18... Bg4 {[%clk 0:01:51.4]} 19. h3 {[%clk 0:01:12.4]}
19... Bh5 {[%clk 0:01:40.9]} 20. Bxe5 {[%clk 0:01:02.2]} 20... Qxe5 {[%clk
0:01:42.7]} 21. Qxe5 {[%clk 0:01:03.1]} 21... Rxe5 {[%clk 0:01:44.6]} 22. g4
{[%clk 0:01:03.8]} 22... Bg6 {[%clk 0:01:44.4]} 23. Nxc7 {[%clk 0:01:00.8]}
23... Rc8 {[%clk 0:01:37.5]} 24. Nb5 {[%clk 0:01:01.4]} 24... Rce8 {[%clk
0:01:36.1]} 25. f4 {[%clk 0:00:56.5]} 25... Rxe2 {[%clk 0:01:05.7]} 26. Rxe2
{[%clk 0:00:58.4]} 26... Rxe2 {[%clk 0:01:07.2]} 27. f5 {[%clk 0:00:59.2]} 27...
Bh7 {[%clk 0:01:08.7]} 28. Kf1 {[%clk 0:00:51.8]} 28... Re8 {[%clk 0:01:05.8]}
29. Rd6 {[%clk 0:00:47.7]} 29... Rb8 {[%clk 0:01:05.6]} 30. Na7 {[%clk
0:00:44.1]} 30... Kf8 {[%clk 0:00:29]} 31. Nc6 {[%clk 0:00:44.2]} 31... Re8
{[%clk 0:00:25.6]} 32. Na7 {[%clk 0:00:30.3]} 32... Rb8 {[%clk 0:00:22.4]} 33.
Kf2 {[%clk 0:00:31]} 33... h5 {[%clk 0:00:17.5]} 34. Kg3 {[%clk 0:00:27.6]}
34... hxg4 {[%clk 0:00:18.5]} 35. hxg4 {[%clk 0:00:29.5]} 35... Ne8 {[%clk
0:00:19.7]} 36. Rd7 {[%clk 0:00:28.8]} 36... g6 {[%clk 0:00:20.6]} 37. Bd5
{[%clk 0:00:28.1]} 37... Bg8 {[%clk 0:00:15.9]} 38. Nc6 {[%clk 0:00:24.8]} 38...
Rc8 {[%clk 0:00:13.3]} 39. Ne7 {[%clk 0:00:24.2]} 39... Nf6 {[%clk 0:00:07.1]}
40. Rb7 {[%clk 0:00:22.7]} 40... Rd8 {[%clk 0:00:07.2]} 41. Nxg8 {[%clk
0:00:09.4]} 41... Kxg8 {[%clk 0:00:05.9]} 42. Bxf7+ {[%clk 0:00:09.4]} 42... Kh8
{[%clk 0:00:03.3]} 43. Bxg6 {[%clk 0:00:11.2]} 43... Ne4+ {[%clk 0:00:04.3]} 44.
Kf4 {[%clk 0:00:12.3]} 44... Nc3 {[%clk 0:00:05.2]} 45. f6 {[%clk 0:00:13]}
45... Ne2+ {[%clk 0:00:05.3]} 46. Ke5 {[%clk 0:00:13.4]} 46... Nd4 {[%clk
0:00:07.2]} 47. Rh7+ {[%clk 0:00:13.7]} 47... Kg8 {[%clk 0:00:08.6]} 48. f7+
{[%clk 0:00:15.6]} 48... Kf8 {[%clk 0:00:10.5]} 49. Rh8+ {[%clk 0:00:17]} 49...
Ke7 {[%clk 0:00:10.7]} 50. Re8+ {[%clk 0:00:18.4]} 1-0

[Event "*** Titled Tuesday Blitz"]
[Site "Chess.com"]
[Date "2019.05.07"]
[Round "4"]
[White "Sashadav97"]
[Black "TargetA"]
[Result "0-1"]
[WhiteElo "2538"]
[BlackElo "2446"]
[TimeControl "180+2"]
[EndTime "13:57:16 PDT"]
[Termination "TargetA won by checkmate"]

1. d4 {[%clk 0:03:01.9]} 1... Nf6 {[%clk 0:02:59.9]} 2. c4 {[%clk 0:03:03.4]}
2... g6 {[%clk 0:03:01]} 3. Nc3 {[%clk 0:03:04.1]} 3... Bg7 {[%clk 0:03:02]} 4.
e4 {[%clk 0:03:04.6]} 4... d6 {[%clk 0:03:02.9]} 5. Be2 {[%clk 0:03:06]} 5...
O-O {[%clk 0:03:03.8]} 6. Be3 {[%clk 0:03:07.6]} 6... e5 {[%clk 0:03:01.5]} 7.
d5 {[%clk 0:03:08.7]} 7... c6 {[%clk 0:03:00.3]} 8. g4 {[%clk 0:03:09.9]} 8...
cxd5 {[%clk 0:02:59.8]} 9. cxd5 {[%clk 0:03:11.8]} 9... a6 {[%clk 0:02:58.6]}
10. a4 {[%clk 0:03:11.3]} 10... Nbd7 {[%clk 0:02:49.4]} 11. h4 {[%clk
0:03:11.1]} 11... Qa5 {[%clk 0:02:41]} 12. f3 {[%clk 0:03:01.2]} 12... h5 {[%clk
0:02:34.2]} 13. g5 {[%clk 0:02:55.8]} 13... Nh7 {[%clk 0:02:33]} 14. Nh3 {[%clk
0:02:47.5]} 14... Nc5 {[%clk 0:02:26.5]} 15. Nf2 {[%clk 0:02:47.1]} 15... f6
{[%clk 0:02:19]} 16. gxf6 {[%clk 0:02:44.7]} 16... Bxf6 {[%clk 0:02:20.9]} 17.
Nd3 {[%clk 0:02:35.9]} 17... Nxd3+ {[%clk 0:02:12.4]} 18. Bxd3 {[%clk
0:02:34.6]} 18... Qd8 {[%clk 0:02:11.2]} 19. Bf2 {[%clk 0:02:16.6]} 19... Bd7
{[%clk 0:01:58.4]} 20. a5 {[%clk 0:02:10.9]} 20... Rc8 {[%clk 0:01:56.8]} 21.
Qd2 {[%clk 0:02:10.9]} 21... Bg7 {[%clk 0:01:50.8]} 22. Be2 {[%clk 0:02:05.4]}
22... Rf6 {[%clk 0:01:29.7]} 23. b4 {[%clk 0:02:00.5]} 23... Qf8 {[%clk
0:01:26.8]} 24. Rc1 {[%clk 0:01:36]} 24... Rxf3 {[%clk 0:01:02]} 25. Bxf3 {[%clk
0:01:29.4]} 25... Qxf3 {[%clk 0:01:03.9]} 26. Rg1 {[%clk 0:01:30.5]} 26... Bg4
{[%clk 0:01:00.8]} 27. Qe3 {[%clk 0:01:23.2]} 27... Qf8 {[%clk 0:01:01]} 28. Ne2
{[%clk 0:01:10.4]} 28... Rxc1+ {[%clk 0:00:45.5]} 29. Qxc1 {[%clk 0:01:12.3]}
29... Bh6 {[%clk 0:00:38.2]} 30. Qc3 {[%clk 0:01:10]} 30... Nf6 {[%clk 0:00:34]}
31. Qd3 {[%clk 0:01:04.2]} 31... Qe8 {[%clk 0:00:19.5]} 32. Be3 {[%clk 0:01:01]}
32... Bxe3 {[%clk 0:00:17.9]} 33. Qxe3 {[%clk 0:01:02.9]} 33... Qb5 {[%clk
0:00:18.3]} 34. Rf1 {[%clk 0:00:55.2]} 34... Kg7 {[%clk 0:00:16.2]} 35. Nc3
{[%clk 0:00:46.4]} 35... Qxb4 {[%clk 0:00:16.1]} 36. Kf2 {[%clk 0:00:47.7]}
36... Qxc3 {[%clk 0:00:16.4]} 37. Qxc3 {[%clk 0:00:41.3]} 37... Nxe4+ {[%clk
0:00:17.5]} 38. Ke3 {[%clk 0:00:33.4]} 38... Nxc3 {[%clk 0:00:19.4]} 39. Kd3
{[%clk 0:00:34.6]} 39... Nxd5 {[%clk 0:00:20.3]} 40. Ke4 {[%clk 0:00:27.3]}
40... Nf6+ {[%clk 0:00:20.9]} 41. Ke3 {[%clk 0:00:28.3]} 41... Bd7 {[%clk
0:00:20.6]} 42. Rc1 {[%clk 0:00:29.5]} 42... Bc6 {[%clk 0:00:21.6]} 43. Rg1
{[%clk 0:00:26.9]} 43... d5 {[%clk 0:00:22.5]} 44. Rg5 {[%clk 0:00:28.4]} 44...
d4+ {[%clk 0:00:22.6]} 45. Ke2 {[%clk 0:00:26.2]} 45... Ng4 {[%clk 0:00:22.5]}
46. Kd2 {[%clk 0:00:23.9]} 46... Kf6 {[%clk 0:00:23.2]} 47. Kd3 {[%clk
0:00:24.1]} 47... Bd7 {[%clk 0:00:23.3]} 48. Ke4 {[%clk 0:00:21.5]} 48... Bf5+
{[%clk 0:00:24.2]} 49. Kf3 {[%clk 0:00:22.7]} 49... d3 {[%clk 0:00:24.4]} 50.
Kg3 {[%clk 0:00:17.6]} 50... d2 {[%clk 0:00:24.8]} 51. Kg2 {[%clk 0:00:19.3]}
51... d1=Q {[%clk 0:00:25.8]} 52. Kg3 {[%clk 0:00:20.5]} 52... Qd3+ {[%clk
0:00:26.6]} 53. Kg2 {[%clk 0:00:20.5]} 53... Be4+ {[%clk 0:00:26.4]} 54. Kg1
{[%clk 0:00:19.5]} 54... Qd1# {[%clk 0:00:26.5]} 0-1

[Event "*** Titled Tuesday Blitz"]
[Site "Chess.com"]
[Date "2019.05.07"]
[Round "4"]
[White "bugsbunny444"]
[Black "LonesomeGeorge1"]
[Result "1-0"]
[WhiteElo "2561"]
[BlackElo "2366"]
[TimeControl "180+2"]
[EndTime "13:57:19 PDT"]
[Termination "bugsbunny444 won by resignation"]

1. Nf3 {[%clk 0:03:01.9]} 1... Nf6 {[%clk 0:03:00.4]} 2. c4 {[%clk 0:03:02.9]}
2... g6 {[%clk 0:03:01.8]} 3. b4 {[%clk 0:03:03.5]} 3... Bg7 {[%clk 0:03:03.4]}
4. Bb2 {[%clk 0:03:04.2]} 4... O-O {[%clk 0:03:05]} 5. g3 {[%clk 0:03:02.3]}
5... d6 {[%clk 0:03:04.6]} 6. Bg2 {[%clk 0:03:03.6]} 6... c5 {[%clk 0:03:06.1]}
7. bxc5 {[%clk 0:03:04.1]} 7... dxc5 {[%clk 0:03:07.1]} 8. O-O {[%clk
0:03:05.7]} 8... Nc6 {[%clk 0:03:08]} 9. d3 {[%clk 0:03:06.9]} 9... Re8 {[%clk
0:03:00.9]} 10. Ne5 {[%clk 0:03:05]} 10... Nxe5 {[%clk 0:02:59.1]} 11. Bxe5
{[%clk 0:03:06.1]} 11... Bh6 {[%clk 0:02:24.3]} 12. Nd2 {[%clk 0:02:34.4]} 12...
Ng4 {[%clk 0:02:20.4]} 13. Bc3 {[%clk 0:02:32.8]} 13... e5 {[%clk 0:02:20.3]}
14. Ne4 {[%clk 0:02:27.9]} 14... Qe7 {[%clk 0:02:09.2]} 15. h3 {[%clk
0:02:28.5]} 15... Nf6 {[%clk 0:02:07.3]} 16. Nxf6+ {[%clk 0:02:29.7]} 16... Qxf6
{[%clk 0:02:09.2]} 17. f4 {[%clk 0:02:31.3]} 17... Qe7 {[%clk 0:01:51.9]} 18.
fxe5 {[%clk 0:02:29.5]} 18... Bg7 {[%clk 0:01:42.1]} 19. Bd5 {[%clk 0:01:11.6]}
19... Be6 {[%clk 0:01:42.7]} 20. e4 {[%clk 0:01:12.8]} 20... Qc7 {[%clk
0:01:29.1]} 21. Rb1 {[%clk 0:01:06.9]} 21... Rab8 {[%clk 0:01:30.1]} 22. Kg2
{[%clk 0:00:53.4]} 22... b6 {[%clk 0:01:23.6]} 23. Qa4 {[%clk 0:00:48]} 23...
Re7 {[%clk 0:01:19.6]} 24. Rf6 {[%clk 0:00:25.7]} 24... Bxd5 {[%clk 0:00:45.5]}
25. cxd5 {[%clk 0:00:26.7]} 25... Rxe5 {[%clk 0:00:43.7]} 26. Bxe5 {[%clk
0:00:24.1]} 26... Qxe5 {[%clk 0:00:44.1]} 27. Rf3 {[%clk 0:00:19.7]} 27... Qe7
{[%clk 0:00:38.6]} 28. Rbf1 {[%clk 0:00:18.6]} 28... Rf8 {[%clk 0:00:38.9]} 29.
Qc6 {[%clk 0:00:17.5]} 29... Be5 {[%clk 0:00:39.7]} 30. h4 {[%clk 0:00:16.7]}
30... h5 {[%clk 0:00:32]} 31. a4 {[%clk 0:00:17.1]} 31... Kg7 {[%clk 0:00:31.9]}
32. a5 {[%clk 0:00:15.7]} 32... bxa5 {[%clk 0:00:32.1]} 33. Qa6 {[%clk
0:00:12.1]} 33... Qc7 {[%clk 0:00:29.9]} 34. Rb1 {[%clk 0:00:09.4]} 34... Rb8
{[%clk 0:00:28]} 35. Rxb8 {[%clk 0:00:08]} 35... Qxb8 {[%clk 0:00:29.9]} 36.
Qxa5 {[%clk 0:00:09.6]} 36... Bd4 {[%clk 0:00:27.8]} 37. Qd2 {[%clk 0:00:06.8]}
37... f6 {[%clk 0:00:17.3]} 38. Kh3 {[%clk 0:00:05.7]} 38... Qc8+ {[%clk
0:00:16.6]} 39. Kg2 {[%clk 0:00:06.7]} 39... Qa6 {[%clk 0:00:14.4]} 40. Rf1
{[%clk 0:00:07.7]} 40... Qb6 {[%clk 0:00:10.7]} 41. Qc2 {[%clk 0:00:08.2]} 41...
Kh7 {[%clk 0:00:08.8]} 42. Rb1 {[%clk 0:00:09]} 42... Qa6 {[%clk 0:00:05.9]} 43.
Qc4 {[%clk 0:00:08.8]} 43... Qa3 {[%clk 0:00:04.6]} 44. d6 {[%clk 0:00:06.2]}
44... Qa5 {[%clk 0:00:03.7]} 45. Qf7+ {[%clk 0:00:04.3]} 45... Kh6 {[%clk
0:00:04.7]} 46. Qf8+ {[%clk 0:00:05.6]} 46... Kh7 {[%clk 0:00:05.2]} 47. Rb7+
{[%clk 0:00:06.8]} 1-0